bitfinex-derivatives/quotes_BTCF0:USTF0_20250718
["timestamp","ask_amount","ask_price","bid_price","bid_amount"]
[1752858120724,0.1871948,117650.0,117640.0,0.74488289]
[1752858121028,0.8586648,117650.0,117640.0,0.81215327]
[1752858121827,0.8586648,117650.0,117640.0,0.81626763]
[1752858122028,0.8586648,117650.0,117640.0,0.81726763]
[1752858122325,0.8586648,117650.0,117640.0,0.74093124]
[1752858122627,0.8586648,117650.0,117640.0,0.0950168]
[1752858122926,0.8586648,117650.0,117640.0,0.33354568]
[1752858123329,1.37087602,117650.0,117640.0,0.33354568]
[1752858123831,0.8586648,117650.0,117640.0,0.3376085]
[1752858124028,0.8346248,117650.0,117640.0,0.3376085]
[1752858124231,0.8109648,117650.0,117640.0,0.3376085]
[1752858124532,0.8586648,117650.0,117640.0,0.33354568]
[1752858124928,1.37087602,117650.0,117640.0,0.33354568]
[1752858126132,0.8586648,117650.0,117640.0,0.33354568]
[1752858126332,0.68876,117650.0,117640.0,0.69434568]
[1752858127234,0.8108848,117650.0,117640.0,0.69846805]
[1752858127834,0.8345448,117650.0,117640.0,0.69846805]
[1752858129536,0.8585848,117650.0,117640.0,0.33354568]
[1752858130029,0.8585848,117650.0,117640.0,0.264936]
[1752858130234,0.8585848,117650.0,117640.0,0.33354568]
[1752858130535,1.37197602,117650.0,117640.0,0.33354568]
[1752858131736,0.8585848,117650.0,117640.0,0.33354568]
[1752858132036,0.8585848,117650.0,117640.0,0.69434568]
[1752858132234,0.8585848,117650.0,117640.0,0.33354568]
[1752858133637,0.8585848,117650.0,117640.0,0.69434568]
[1752858134338,0.01645,117650.0,117640.0,0.625736]
[1752858134538,0.2039019,117660.0,117650.0,0.2625547]
[1752858134737,0.8587219,117660.0,117650.0,0.33116438]
[1752858134935,1.37093312,117660.0,117650.0,0.33116438]
[1752858135236,1.37093312,117660.0,117650.0,0.16125968]
[1752858135632,1.73391312,117660.0,117650.0,0.06209]
[1752858135834,1.86391312,117660.0,117650.0,0.00945]
[1752858136236,1.86391312,117660.0,117640.0,0.5928639]
[1752858136237,0.2516047,117650.0,117640.0,0.5928639]
[1752858136435,0.76499592,117650.0,117640.0,0.13076648]
[1752858136636,1.24579592,117650.0,117640.0,0.0095168]
[1752858136938,0.2527992,117640.0,117630.0,0.05716]
[1752858137136,1.85289042,117640.0,117630.0,0.10234968]
[1752858137527,1.87175507,117640.0,117630.0,0.10234968]
[1752858138237,1.87175507,117640.0,117630.0,0.27228328]
[1752858138432,1.87175507,117640.0,117630.0,0.10434968]
[1752858138637,1.87175507,117640.0,117630.0,0.29870328]
[1752858139137,1.51095507,117640.0,117630.0,0.30363328]
[1752858140334,1.87175507,117640.0,117630.0,0.30363328]
[1752858140530,0.0157,117630.0,117610.0,0.12404639]
[1752858140736,1.67399932,117620.0,117610.0,0.02342]
[1752858141031,1.67399932,117620.0,117590.0,0.07633639]
[1752858141032,0.169977,117600.0,117590.0,0.07633639]
[1752858141233,2.5098117,117600.0,117590.0,0.07633639]
[1752858141537,0.1699914,117590.0,117580.0,0.04771]
[1752858141739,1.2677514,117590.0,117580.0,0.06209]
[1752858142540,0.6607914,117590.0,117580.0,0.06209]
[1752858142744,1.2677514,117590.0,117580.0,0.06209]
[1752858142931,0.1700059,117580.0,117570.0,0.07633639]
[1752858143240,0.1700203,117570.0,117560.0,0.00075]
[1752858143437,1.75999152,117570.0,117560.0,0.00075]
[1752858143638,2.18011152,117570.0,117560.0,0.00075]
[1752858144135,1.93011152,117570.0,117560.0,0.00075]
[1752858144639,0.6408203,117570.0,117560.0,0.00075]
[1752858144940,1.65007152,117570.0,117560.0,0.26527448]
[1752858145142,1.29027152,117570.0,117560.0,0.26527448]
[1752858145535,0.001,117570.0,117560.0,0.26527448]
[1752858145742,0.7780204,117570.0,117560.0,0.26527448]
[1752858146147,0.1710204,117570.0,117560.0,0.26527448]
[1752858146346,1.29023162,117570.0,117560.0,0.62607448]
[1752858146644,1.12021122,117570.0,117560.0,0.62607448]
[1752858147237,1.29023162,117570.0,117560.0,0.62607448]
[1752858148342,1.35023162,117570.0,117560.0,0.09523968]
[1752858148542,1.71103162,117570.0,117560.0,0.08578968]
[1752858149144,1.04403162,117570.0,117560.0,0.26527448]
[1752858149355,1.65111162,117570.0,117560.0,0.26527448]
[1752858149553,1.1389403,117570.0,117560.0,0.26527448]
[1752858150159,0.7781403,117570.0,117560.0,0.62607448]
[1752858150559,1.94127152,117570.0,117560.0,0.00075]
[1752858150758,1.94127152,117570.0,117560.0,0.00014]
[1752858150759,1.94265152,117570.0,117560.0,0.00014]
[1752858151056,0.1715892,117550.0,117540.0,0.2177737]
[1752858151258,1.29088042,117550.0,117540.0,0.04771]
[1752858151454,0.1700637,117540.0,117530.0,0.6757146]
[1752858151656,0.68227492,117540.0,117530.0,0.71304428]
[1752858152951,0.68227492,117540.0,117530.0,0.71719385]
[1752858153753,0.68381492,117540.0,117530.0,0.592677]
[1752858154059,0.68381492,117540.0,117530.0,0.73957262]
[1752858154457,0.68381492,117540.0,117530.0,0.63300668]
[1752858154658,1.28935492,117540.0,117530.0,0.63300668]
[1752858155266,1.28935492,117540.0,117530.0,0.27220668]
[1752858155461,1.28935492,117540.0,117530.0,0.63799616]
[1752858155662,1.28935492,117540.0,117530.0,0.27220668]
[1752858155864,1.28935492,117540.0,117530.0,0.37877262]
[1752858156358,1.28935492,117540.0,117530.0,0.73957262]
[1752858156764,1.11929122,117540.0,117530.0,0.73957262]
[1752858156966,1.28935492,117540.0,117530.0,0.73957262]
[1752858157467,1.29012492,117540.0,117530.0,0.63300668]
[1752858157667,1.29089492,117540.0,117530.0,0.63300668]
[1752858157867,1.29089492,117540.0,117530.0,0.63793668]
[1752858158369,1.28935492,117540.0,117530.0,0.63793668]
[1752858159869,0.60955,117540.0,117530.0,0.66995668]
[1752858161072,0.00247,117540.0,117530.0,0.66995668]
[1752858161274,0.02068375,117560.0,117550.0,0.2315992]
[1752858161569,0.01911375,117560.0,117550.0,1.1771501]
[1752858161763,0.01911375,117560.0,117550.0,1.20924125]
[1752858161968,0.1699964,117590.0,117580.0,0.3148138]
[1752858162172,1.3942363,117600.0,117590.0,0.1699914]
[1752858162366,0.7862163,117600.0,117590.0,0.2298014]
[1752858162566,1.3932563,117600.0,117590.0,0.2298014]
[1752858162768,0.5312347,117600.0,117590.0,0.23483844]
[1752858163065,0.5312347,117600.0,117580.0,0.5307979]
[1752858163066,0.08504,117510.0,117470.0,0.0772521]
[1752858163263,0.89612122,117480.0,117470.0,0.17515075]
[1752858163460,0.3608,117480.0,117470.0,0.820445]
[1752858163661,0.3608,117490.0,117470.0,1.44535298]
[1752858163862,0.3608,117490.0,117480.0,0.36582498]
[1752858164063,0.3608,117490.0,117480.0,0.61582498]
[1752858164261,0.3609009,117490.0,117480.0,0.78605698]
[1752858164461,0.3609009,117490.0,117480.0,1.44701698]
[1752858164661,0.3609009,117490.0,117480.0,1.9592282]
[1752858164869,0.38005909,117510.0,117480.0,1.95420322]
[1752858165171,0.55016569,117510.0,117500.0,0.06473408]
[1752858165373,0.38005909,117510.0,117500.0,0.06473408]
[1752858166268,0.38105909,117510.0,117500.0,0.06473408]
[1752858166477,0.3608,117510.0,117500.0,0.72557408]
[1752858166870,0.3618,117540.0,117530.0,0.05981]
[1752858167175,0.3618,117540.0,117530.0,0.72469408]
[1752858167471,1.04407452,117540.0,117530.0,0.06473408]
[1752858167773,1.09173452,117540.0,117530.0,0.72497408]
[1752858167968,1.09173452,117540.0,117530.0,0.06473408]
[1752858168368,1.09173452,117540.0,117530.0,0.72465408]
[1752858168863,0.0901872,117510.0,117500.0,0.04974]
[1752858169069,1.17584342,117510.0,117500.0,0.01007]
[1752858169270,0.1701212,117500.0,117490.0,0.05981]
[1752858169470,1.04313242,117500.0,117490.0,0.05981]
[1752858169773,1.04313242,117500.0,117490.0,0.06473408]
[1752858169973,0.87301122,117500.0,117490.0,0.06473408]
[1752858170174,1.04313242,117500.0,117490.0,0.06473408]
[1752858170471,0.87301122,117500.0,117490.0,0.72425408]
[1752858170677,0.3618,117500.0,117490.0,0.72425408]
[1752858170872,0.3618,117500.0,117490.0,0.89438278]
[1752858171272,0.3658,117500.0,117490.0,0.89438278]
[1752858171573,0.3618,117520.0,117510.0,0.1701067]
[1752858171765,0.38484726,117520.0,117510.0,0.23484078]
[1752858171970,0.89705848,117520.0,117510.0,0.89320078]
[1752858172170,0.38484726,117520.0,117510.0,0.89320078]
[1752858172376,0.3608,117530.0,117520.0,0.2299022]
[1752858172578,0.3608,117530.0,117520.0,0.8881822]
[1752858172775,0.3608,117530.0,117520.0,0.89310628]
[1752858173076,0.3608,117530.0,117520.0,0.89290628]
[1752858173868,0.3608,117530.0,117520.0,0.23582628]
[1752858174378,1.04308902,117530.0,117520.0,0.89330628]
[1752858174572,0.3608,117530.0,117520.0,0.89330628]
[1752858174878,0.3608,117530.0,117520.0,0.23582628]
[1752858175074,0.3608,117530.0,117520.0,0.89294628]
[1752858175474,0.38468502,117530.0,117520.0,0.89294628]
[1752858175672,0.38468502,117530.0,117520.0,0.95993756]
[1752858175879,0.38468502,117530.0,117520.0,1.47214878]
[1752858176075,0.38468423,117530.0,117520.0,1.47214878]
[1752858176576,0.38468851,117530.0,117520.0,0.95993756]
[1752858176779,0.3608,117530.0,117520.0,0.95993756]
[1752858177277,0.5318777,117530.0,117520.0,0.95993756]
[1752858177979,0.55566737,117530.0,117520.0,0.95993756]
[1752858178279,0.5318777,117530.0,117520.0,0.95993756]
[1752858178679,0.3618,117530.0,117520.0,0.95993756]
[1752858178878,0.5318777,117530.0,117520.0,0.95993756]
[1752858179079,0.3618,117530.0,117520.0,0.95993756]
[1752858179276,0.38560341,117530.0,117520.0,0.95993756]
[1752858179480,0.5318777,117530.0,117520.0,0.95993756]
[1752858180072,0.3618,117530.0,117520.0,0.95993756]
[1752858180278,0.3608,117540.0,117530.0,0.2298877]
[1752858180479,0.1700633,117540.0,117530.0,0.7722495]
[1752858180679,0.63547851,117550.0,117540.0,0.2384933]
[1752858180881,0.40420175,117550.0,117540.0,0.89665738]
[1752858181084,0.37938951,117550.0,117540.0,0.89665738]
[1752858181880,0.5308488,117550.0,117540.0,0.89665738]
[1752858182278,0.5328488,117550.0,117540.0,0.89665738]
[1752858182982,0.5348488,117550.0,117540.0,0.89665738]
[1752858183578,1.14499002,117550.0,117540.0,0.07335408]
[1752858183771,1.16376002,117550.0,117540.0,0.72479408]
[1752858184377,1.16376002,117550.0,117540.0,0.72978092]
[1752858184579,1.16476002,117550.0,117540.0,0.89485728]
[1752858185076,1.16476002,117550.0,117540.0,0.72479408]
[1752858186076,1.18831821,117550.0,117540.0,0.89485728]
[1752858186980,0.65733699,117550.0,117540.0,0.89983105]
[1752858187183,1.16954821,117550.0,117540.0,0.89983105]
[1752858189182,0.55940629,117550.0,117540.0,0.89983105]
[1752858189483,0.38935819,117550.0,117540.0,0.89983105]
[1752858189681,0.55940599,117550.0,117540.0,0.89983105]
[1752858190680,0.43819819,117550.0,117500.0,0.37949]
[1752858190984,0.2977424,117490.0,117480.0,0.11023]
[1752858191176,2.15057692,117490.0,117480.0,0.11515408]
[1752858193578,2.15057692,117490.0,117480.0,0.09646408]
[1752858194273,0.1711488,117480.0,117470.0,0.28537202]
[1752858194480,1.04416002,117480.0,117470.0,0.28531738]
[1752858196286,1.04416002,117480.0,117470.0,0.28631738]
[1752858196783,1.06736966,117480.0,117470.0,0.28631738]
[1752858197082,1.04416002,117480.0,117470.0,0.09254]
[1752858197287,1.04416002,117480.0,117470.0,0.09746408]
[1752858197487,1.04416002,117480.0,117470.0,0.00592408]
[1752858197876,1.04416002,117480.0,117470.0,0.09746408]
[1752858198389,1.04416002,117480.0,117470.0,0.001]
[1752858198988,1.19733979,117480.0,117470.0,0.001]
[1752858199283,0.1701924,117450.0,117440.0,0.11979823]
[1752858199482,2.06076362,117450.0,117440.0,0.12979323]
[1752858199781,1.37956,117450.0,117440.0,0.30000013]
[1752858200083,1.5497524,117450.0,117440.0,0.30000013]
[1752858200383,2.06196362,117450.0,117440.0,0.13086915]
[1752858200577,2.06196362,117450.0,117440.0,0.13072231]
[1752858200777,2.06184362,117450.0,117440.0,0.13072231]
[1752858200982,2.06174725,117450.0,117440.0,0.13072231]
[1752858202190,2.06070725,117450.0,117440.0,0.13072231]
[1752858202877,2.06010725,117450.0,117440.0,0.13072231]
[1752858204182,1.54789603,117450.0,117440.0,0.13072231]
[1752858204382,2.05926725,117450.0,117440.0,0.13072231]
[1752858204590,1.40390725,117450.0,117440.0,0.30092901]
[1752858204790,2.05926725,117450.0,117440.0,0.13072231]
[1752858205290,2.05926725,117450.0,117440.0,0.30092901]
[1752858206192,2.05874725,117450.0,117440.0,0.13072231]
[1752858206589,2.05874725,117450.0,117440.0,0.13472231]
[1752858207297,2.05874725,117450.0,117440.0,0.11603231]
[1752858207599,2.05790725,117450.0,117440.0,0.28623921]
[1752858207790,2.05790725,117450.0,117440.0,0.13472231]
[1752858208592,2.05790725,117450.0,117440.0,0.30492921]
[1752858209096,2.05790725,117450.0,117440.0,0.13472231]
[1752858209497,2.05790725,117450.0,117440.0,0.30492921]
[1752858209794,2.09669725,117450.0,117440.0,0.25492921]
[1752858210193,2.09669725,117450.0,117440.0,0.08472231]
[1752858210392,1.44433725,117450.0,117440.0,0.08472231]
[1752858210585,2.09645725,117450.0,117440.0,0.08472231]
[1752858210891,1.44433725,117450.0,117440.0,0.08472231]
[1752858211098,2.09573725,117450.0,117440.0,0.25492911]
[1752858211798,1.58352603,117450.0,117440.0,0.25492911]
[1752858212003,2.09521725,117450.0,117440.0,0.25492911]
[1752858212195,2.09521725,117450.0,117440.0,0.08472231]
[1752858212696,2.09485725,117450.0,117440.0,0.08472231]
[1752858213202,2.09726725,117450.0,117440.0,0.08472231]
[1752858213497,1.58505603,117450.0,117440.0,0.25492921]
[1752858213795,2.05430725,117450.0,117440.0,0.25492921]
[1752858214101,2.09676725,117450.0,117440.0,0.25492921]
[1752858214791,1.27617485,117450.0,117440.0,0.25492921]
[1752858215000,0.1701924,117450.0,117440.0,0.34003111]
[1752858215198,1.04571042,117460.0,117450.0,0.2870724]
[1752858215199,0.3618,117460.0,117450.0,0.2870724]
[1752858215498,0.3618,117460.0,117450.0,0.29199648]
[1752858215691,0.5319779,117460.0,117450.0,0.29199648]
[1752858215892,1.04418912,117460.0,117450.0,0.29199648]
[1752858216394,0.5319779,117460.0,117450.0,0.29199648]
[1752858216796,0.5319779,117460.0,117450.0,0.29499648]
[1752858217299,0.3618,117460.0,117450.0,0.29499648]
[1752858217497,0.5319779,117460.0,117450.0,0.29499648]
[1752858217997,0.5319779,117460.0,117450.0,0.36471001]
[1752858219597,1.08664912,117460.0,117450.0,0.36471001]
[1752858219797,1.08664912,117460.0,117450.0,0.36871001]
[1752858219998,1.08664912,117460.0,117450.0,0.44066001]
[1752858220189,0.3608,117460.0,117450.0,0.44066001]
[1752858220507,0.3608,117460.0,117450.0,1.08722001]
[1752858220699,0.3621,117470.0,117460.0,0.3590078]
[1752858220900,0.3621,117470.0,117460.0,0.36393188]
[1752858221093,0.5322633,117470.0,117460.0,0.36393188]
[1752858221502,1.11995452,117470.0,117460.0,0.36393188]
[1752858221802,1.12095452,117470.0,117460.0,0.36593188]
[1752858221989,0.6077433,117470.0,117460.0,0.36593188]
[1752858222189,0.6087433,117470.0,117460.0,0.36593188]
[1752858222588,0.6077433,117470.0,117460.0,0.3610078]
[1752858222790,0.5652833,117470.0,117460.0,0.36593188]
[1752858223603,0.5652833,117470.0,117460.0,0.36793188]
[1752858226000,0.39512,117470.0,117460.0,0.36793188]
[1752858226397,0.3631,117480.0,117470.0,0.1701634]
[1752858226599,0.3608,117490.0,117480.0,0.2420989]
[1752858226805,0.0226385,117490.0,117480.0,1.2925696]
[1752858226998,0.3608,117510.0,117500.0,0.17012]
[1752858227197,0.59241346,117520.0,117510.0,0.1701055]
[1752858227394,0.37978716,117520.0,117510.0,0.29190958]
[1752858227604,0.54987816,117520.0,117510.0,0.29190958]
[1752858229202,0.54987816,117520.0,117510.0,0.29290958]
[1752858229507,0.37978716,117520.0,117510.0,0.29290958]
[1752858230406,0.37978716,117520.0,117510.0,0.93530958]
[1752858232002,0.54987826,117520.0,117510.0,0.9370602]
[1752858232704,0.54987826,117520.0,117510.0,0.1977047]
[1752858233007,0.54987826,117520.0,117510.0,1.0090103]
[1752858233008,0.37978716,117520.0,117510.0,1.0090103]
[1752858234003,0.37978716,117520.0,117510.0,1.07866886]
[1752858235703,0.3608,117520.0,117510.0,1.07866886]
[1752858237311,0.5308911,117520.0,117510.0,1.07866886]
[1752858237707,0.1700911,117520.0,117510.0,1.07866886]
[1752858238009,1.21314382,117530.0,117520.0,0.3393211]
[1752858238308,1.27512382,117530.0,117520.0,0.36384518]
[1752858238613,1.23260162,117530.0,117520.0,0.36384518]
[1752858239209,0.7213904,117530.0,117520.0,0.36384518]
[1752858239405,1.23360162,117530.0,117520.0,0.36384518]
[1752858239710,0.42378,117530.0,117520.0,0.36384518]
[1752858240211,0.5938566,117530.0,117520.0,0.36384518]
[1752858240407,0.5948566,117530.0,117520.0,0.19375408]
[1752858240608,1.10706782,117530.0,117520.0,0.19375408]
[1752858240812,1.14819782,117530.0,117520.0,0.19375408]
[1752858241012,1.14719782,117530.0,117520.0,0.36384518]
[1752858241412,1.14619782,117530.0,117520.0,0.36384518]
[1752858241912,1.14719782,117530.0,117520.0,0.36384518]
[1752858242113,1.10606782,117530.0,117520.0,0.36384518]
[1752858242313,1.10706782,117530.0,117520.0,0.36384518]
[1752858243306,1.14819782,117530.0,117520.0,0.36384518]
[1752858244511,0.97812122,117530.0,117520.0,0.36384518]
[1752858244708,0.93699122,117530.0,117520.0,0.36384518]
[1752858245015,0.3628,117530.0,117520.0,0.36384518]
[1752858246008,0.002,117530.0,117520.0,0.36384518]
[1752858247107,0.002,117530.0,117520.0,0.8760564]
[1752858247318,0.001,117530.0,117520.0,0.8760564]
[1752858247511,0.001,117530.0,117520.0,0.36484518]
[1752858247711,0.42399,117540.0,117530.0,0.3337267]
[1752858248010,0.39181,117540.0,117530.0,0.99161078]
[1752858248315,0.3608,117540.0,117530.0,1.503822]
[1752858248518,0.3608,117550.0,117530.0,1.503822]
[1752858248519,0.3618,117550.0,117530.0,1.503822]
[1752858248813,0.001,117550.0,117540.0,0.35811628]
[1752858249208,0.3608,117560.0,117550.0,0.3531777]
[1752858249412,0.3608,117560.0,117550.0,1.502873]
[1752858249611,0.3608,117560.0,117550.0,0.99066178]
[1752858250407,0.3628,117560.0,117550.0,0.99066178]
[1752858250908,0.3608,117560.0,117550.0,0.99166178]
[1752858251109,0.3608,117560.0,117550.0,1.503873]
[1752858251509,0.36224,117570.0,117560.0,0.2410632]
[1752858251705,0.36124,117570.0,117560.0,0.35808728]
[1752858252013,0.5322588,117570.0,117560.0,0.36114176]
[1752858252209,0.5322588,117570.0,117560.0,0.99238176]
[1752858252413,0.38224683,117570.0,117560.0,0.99238176]
[1752858252610,0.3608,117570.0,117560.0,0.99238176]
[1752858252917,0.6786313,117580.0,117570.0,0.3531491]
[1752858253116,0.70007436,117580.0,117570.0,0.3531491]
[1752858254114,1.21228558,117580.0,117570.0,0.18313]
[1752858254416,1.23662558,117580.0,117570.0,0.353149]
[1752858254814,1.23762558,117580.0,117570.0,0.353149]
[1752858255620,0.72541436,117580.0,117570.0,0.353149]
[1752858255917,1.23762558,117580.0,117570.0,0.353149]
[1752858256517,1.21428558,117580.0,117570.0,0.353149]
[1752858256921,1.23762558,117580.0,117570.0,0.18313]
[1752858257119,1.23762558,117580.0,117570.0,0.81297]
[1752858257521,1.23762558,117580.0,117570.0,0.9829891]
[1752858257918,0.72541436,117580.0,117570.0,0.9829891]
[1752858258119,1.23762558,117580.0,117570.0,0.9829891]
[1752858259216,1.23762558,117580.0,117570.0,0.98791318]
[1752858262929,1.16297995,117580.0,117570.0,0.98791318]
[1752858264329,1.13963995,117580.0,117570.0,0.98791318]
[1752858265028,1.16297995,117580.0,117570.0,0.98791318]
[1752858265932,1.16297995,117580.0,117570.0,0.98319318]
[1752858266431,1.16297995,117580.0,117570.0,0.35807318]
[1752858266631,1.16297995,117580.0,117570.0,0.98295318]
[1752858266829,1.16297995,117580.0,117570.0,0.35807318]
[1752858267032,1.16297995,117580.0,117560.0,0.00305448]
[1752858267033,0.2979591,117570.0,117560.0,0.00305448]
[1752858267230,0.2757524,117550.0,117540.0,0.1121]
[1752858267529,1.58469749,117550.0,117540.0,0.1121]
[1752858267729,0.2342525,117540.0,117530.0,0.9017438]
[1752858267932,0.1704659,117520.0,117500.0,0.2149957]
[1752858268128,1.72297149,117510.0,117500.0,0.09262]
[1752858268333,1.72301149,117510.0,117500.0,0.04774]
[1752858268631,1.09741149,117510.0,117500.0,0.2178604]
[1752858268829,1.69927149,117510.0,117500.0,0.35817448]
[1752858269033,1.2615859,117510.0,117500.0,0.3532504]
[1752858269233,1.2615859,117510.0,117500.0,0.36112587]
[1752858269234,1.14955297,117510.0,117500.0,0.36112587]
[1752858269434,1.77479297,117510.0,117500.0,0.36112587]
[1752858269636,1.14955297,117510.0,117500.0,0.36112587]
[1752858269838,1.77475297,117510.0,117500.0,0.36112587]
[1752858270031,1.79809297,117510.0,117500.0,0.19100547]
[1752858270334,1.79809297,117510.0,117500.0,0.12944547]
[1752858270335,1.79837297,117510.0,117500.0,0.12944547]
[1752858270534,1.79937297,117510.0,117500.0,0.12944547]
[1752858270733,1.86769999,117510.0,117500.0,0.12944547]
[1752858271232,1.79937297,117510.0,117500.0,0.12944547]
[1752858271436,1.81929027,117510.0,117500.0,0.29956577]
[1752858271627,1.81901027,117510.0,117500.0,0.29956577]
[1752858271832,1.81901027,117510.0,117500.0,0.33061577]
[1752858272130,0.3648601,117470.0,117460.0,0.06552]
[1752858272333,2.22410717,117470.0,117460.0,0.06552]
[1752858272737,0.9797347,117470.0,117460.0,0.23577591]
[1752858272936,0.9798004,117470.0,117460.0,0.23577591]
[1752858273130,0.7216657,117470.0,117460.0,0.74902537]
[1752858273337,0.3618657,117470.0,117460.0,0.74910298]
[1752858273536,0.3618657,117470.0,117460.0,0.23877591]
[1752858273734,0.3618657,117470.0,117460.0,0.75210298]
[1752858273735,0.0010657,117470.0,117460.0,0.75210298]
[1752858273939,0.0010657,117470.0,117460.0,0.80050298]
[1752858274132,0.0010657,117470.0,117460.0,0.79750298]
[1752858274533,0.0010657,117470.0,117460.0,0.28417591]
[1752858275140,0.0010657,117470.0,117460.0,0.28517591]
[1752858275338,0.0010657,117470.0,117460.0,0.28827332]
[1752858275936,6.57e-05,117470.0,117460.0,0.28827332]
[1752858276136,6.57e-05,117470.0,117460.0,0.28927332]
[1752858276333,0.5764595,117470.0,117460.0,0.11909502]
[1752858276543,0.5764595,117470.0,117460.0,0.29027332]
[1752858276544,1.11142657,117470.0,117460.0,0.29027332]
[1752858276744,1.11142657,117470.0,117460.0,0.12009502]
[1752858277445,1.11242657,117470.0,117460.0,0.05026]
[1752858277747,1.11242657,117470.0,117460.0,0.003]
[1752858278235,1.11242657,117470.0,117460.0,0.002]
[1752858279140,0.2372483,117460.0,117450.0,0.23780053]
[1752858279337,1.11137537,117460.0,117450.0,0.23787814]
[1752858280045,1.11137537,117460.0,117450.0,0.29574814]
[1752858280245,1.11137537,117460.0,117450.0,0.29674814]
[1752858281544,1.00368707,117460.0,117450.0,0.29674814]
[1752858281846,0.46872,117460.0,117450.0,0.35845814]
[1752858282449,0.6388983,117460.0,117450.0,0.35845814]
[1752858283045,0.46872,117460.0,117450.0,0.35845814]
[1752858283945,0.6388987,117460.0,117450.0,0.35845814]
[1752858284546,1.15222577,117460.0,117450.0,0.35845814]
[1752858284948,1.17386577,117460.0,117450.0,0.35845814]
[1752858286452,1.17386577,117460.0,117430.0,0.04726]
[1752858286453,0.2975077,117440.0,117430.0,0.04726]
[1752858286657,0.2975077,117440.0,117420.0,0.2889188]
[1752858286658,0.1702222,117430.0,117420.0,0.2889188]
[1752858286953,1.1717115,117430.0,117420.0,0.33625641]
[1752858287556,1.1717115,117430.0,117420.0,0.33843031]
[1752858287749,1.1717115,117430.0,117420.0,0.37064031]
[1752858287951,1.1717115,117430.0,117420.0,0.00225151]
[1752858288150,1.17164927,117430.0,117420.0,0.0021739]
[1752858288353,0.1702367,117420.0,117410.0,0.378761]
[1752858288557,1.17174138,117420.0,117410.0,0.37883861]
[1752858288762,1.17174138,117420.0,117410.0,0.41104861]
[1752858290262,1.17174138,117420.0,117410.0,0.41517143]
[1752858290560,1.00150468,117420.0,117410.0,0.44667143]
[1752858290756,1.15010138,117420.0,117410.0,0.44667143]
[1752858291860,1.17174138,117420.0,117410.0,0.44667143]
[1752858293159,1.00150468,117420.0,117410.0,0.44667143]
[1752858293353,0.42336761,117420.0,117410.0,0.44667143]
[1752858293551,0.36087761,117420.0,117410.0,0.44667143]
[1752858293855,7.761e-05,117420.0,117410.0,0.44667143]
[1752858294061,0.53111431,117420.0,117410.0,0.44667143]
[1752858294258,0.17031431,117420.0,117410.0,0.44667143]
[1752858294458,7.761e-05,117420.0,117410.0,0.44667143]
[1752858294660,1.17897138,117420.0,117410.0,0.44667143]
[1752858295259,1.18045138,117420.0,117410.0,0.33197402]
[1752858295564,1.18045138,117420.0,117410.0,0.29984163]
[1752858296761,1.80141138,117420.0,117410.0,0.29984163]
[1752858297264,1.80141138,117420.0,117410.0,0.12959043]
[1752858297563,1.80141138,117420.0,117410.0,0.29984153]
[1752858299272,1.80141138,117420.0,117410.0,0.24984153]
[1752858299467,1.80141138,117420.0,117410.0,0.24584153]
[1752858299860,0.49540761,117420.0,117410.0,0.30755153]
[1752858300058,1.28508431,117420.0,117410.0,0.30755153]
[1752858300657,0.44997761,117420.0,117410.0,0.54384252]
[1752858301364,0.44997761,117420.0,117410.0,0.59038252]
[1752858301966,0.62021431,117420.0,117410.0,0.59038252]
[1752858302465,0.44997761,117420.0,117410.0,0.59038252]
[1752858302664,0.44997761,117420.0,117410.0,0.59138252]
[1752858303160,0.62021431,117420.0,117410.0,0.59138252]
[1752858303459,0.62021431,117420.0,117410.0,0.59038252]
[1752858303964,0.44997761,117420.0,117410.0,0.59038252]
[1752858304765,0.44997761,117420.0,117410.0,0.59138252]
[1752858304962,0.03113761,117420.0,117410.0,1.03007365]
[1752858305168,7.761e-05,117420.0,117410.0,2.01003365]
[1752858306069,7.761e-05,117420.0,117410.0,1.21054252]
[1752858306362,1.13296544,117420.0,117410.0,1.21154252]
[1752858306970,0.96272874,117420.0,117410.0,1.21154252]
[1752858307165,0.47614761,117420.0,117410.0,1.21154252]
[1752858307365,1.08507544,117420.0,117410.0,1.21154252]
[1752858307567,0.72427544,117420.0,117410.0,1.21154252]
[1752858307868,1.08507544,117420.0,117410.0,1.21154252]
[1752858308365,0.11534761,117420.0,117410.0,1.21154252]
[1752858308566,0.72427554,117420.0,117410.0,1.21054252]
[1752858309071,1.08507554,117420.0,117410.0,1.21054252]
[1752858309672,0.91483874,117420.0,117410.0,1.21054252]
[1752858309872,1.08507554,117420.0,117410.0,1.21054252]
[1752858310073,1.13296554,117420.0,117410.0,1.21054252]
[1752858310573,0.52403761,117420.0,117410.0,1.21054252]
[1752858310769,0.96272874,117420.0,117410.0,1.21054252]
[1752858311073,0.96440874,117420.0,117410.0,1.21046491]
[1752858311274,0.96440874,117420.0,117410.0,1.21054252]
[1752858311671,1.13464554,117420.0,117410.0,1.21054252]
[1752858311869,0.96440874,117420.0,117410.0,1.21054252]
[1752858312671,0.96272874,117420.0,117410.0,1.21054252]
[1752858312871,0.96272874,117420.0,117410.0,1.20954252]
[1752858313075,1.13296554,117420.0,117410.0,1.20954252]
[1752858313370,0.96272874,117420.0,117410.0,1.20954252]
[1752858313874,1.13296554,117420.0,117410.0,1.20954252]
[1752858314276,0.69427441,117420.0,117410.0,1.20954252]
[1752858314769,1.13296554,117420.0,117410.0,1.20954252]
[1752858314974,1.14315761,117420.0,117410.0,1.20954252]
[1752858315175,0.60192874,117420.0,117410.0,0.59038252]
[1752858315376,7.761e-05,117420.0,117410.0,2.00895365]
[1752858316171,7.761e-05,117420.0,117410.0,1.57026252]
[1752858316779,0.47614761,117420.0,117410.0,0.59138252]
[1752858316973,0.47614761,117420.0,117410.0,1.21046252]
[1752858317378,0.47614761,117420.0,117410.0,0.59138252]
[1752858317575,0.96272874,117420.0,117410.0,1.21042252]
[1752858318675,1.13296594,117420.0,117410.0,1.21134491]
[1752858318878,1.13296594,117420.0,117410.0,1.21142252]
[1752858319279,1.13296594,117420.0,117410.0,1.21042252]
[1752858319479,0.96272874,117420.0,117410.0,1.21042252]
[1752858319676,0.52403761,117420.0,117410.0,1.21042252]
[1752858320178,0.36087761,117420.0,117410.0,1.64911365]
[1752858320378,0.36087761,117420.0,117410.0,2.00991365]
[1752858320379,7.761e-05,117420.0,117410.0,2.00991365]
[1752858320979,7.761e-05,117420.0,117410.0,2.01091365]
[1752858321275,1e-08,117420.0,117410.0,2.43120965]
[1752858321573,0.3608,117460.0,117450.0,0.3588237]
[1752858321771,0.02106204,117460.0,117450.0,1.77739244]
[1752858322170,0.02106204,117460.0,117450.0,1.41655244]
[1752858322370,0.38185507,117460.0,117450.0,0.97786131]
[1752858322570,0.4402,117480.0,117470.0,0.1701656]
[1752858322772,0.41265502,117480.0,117470.0,1.41644673]
[1752858322969,0.38185502,117480.0,117470.0,1.41652434]
[1752858323770,0.41265502,117480.0,117470.0,1.41652434]
[1752858324072,0.41265502,117480.0,117470.0,0.97783321]